bitfinex/quotes_BTCUSD_20260110
["timestamp","ask_amount","ask_price","bid_price","bid_amount"]
[1768078290790,0.03298064,90572.0,90558.0,0.01104264]
[1768078292321,0.04543109,90571.0,90558.0,0.01104264]
[1768078292726,0.04543109,90571.0,90559.0,0.01104252]
[1768078292931,0.04543109,90571.0,90558.0,0.01104264]
[1768078293139,0.04543109,90571.0,90559.0,0.01104252]
[1768078294008,0.04543109,90571.0,90558.0,0.01104264]
[1768078294316,0.04543109,90571.0,90559.0,0.01104252]
[1768078294906,0.04526407,90571.0,90559.0,0.01104252]
[1768078295318,0.03298064,90572.0,90558.0,0.01104264]
[1768078295819,0.03298064,90572.0,90559.0,0.01104252]
[1768078296022,0.02193971,90572.0,90559.0,0.01104252]
[1768078296319,0.02193971,90572.0,90558.0,0.01104264]
[1768078296758,0.03298064,90572.0,90559.0,0.01104252]
[1768078296961,0.02193971,90572.0,90559.0,0.01104252]
[1768078297278,0.03298064,90572.0,90558.0,0.04681225]
[1768078297487,0.03298064,90572.0,90559.0,0.01104252]
[1768078297689,0.02193971,90572.0,90559.0,0.04681225]
[1768078297892,0.02193971,90572.0,90559.0,0.05785477]
[1768078298097,0.02193971,90572.0,90560.0,0.0110424]
[1768078298248,0.03298064,90572.0,90559.0,0.05785477]
[1768078298802,0.03298064,90572.0,90559.0,0.04681225]
[1768078299206,0.01104106,90571.0,90559.0,0.04681225]
[1768078299926,0.03298064,90572.0,90559.0,0.04681225]
[1768078300131,0.03298064,90572.0,90559.0,0.05785477]
[1768078300306,0.02193971,90572.0,90560.0,0.0110424]
[1768078301084,0.02193971,90572.0,90559.0,0.05785477]
[1768078301646,0.03298064,90572.0,90559.0,0.05785477]
[1768078302921,0.02193971,90572.0,90560.0,0.0110424]
[1768078303245,0.02193971,90572.0,90561.0,0.01104228]
[1768078303447,0.02193971,90572.0,90559.0,0.05785477]
[1768078303823,0.02193971,90572.0,90560.0,0.0110424]
[1768078304027,0.02193971,90572.0,90560.0,0.01099749]
[1768078304251,0.03298064,90572.0,90559.0,0.05785477]
[1768078304451,0.02193971,90572.0,90559.0,0.04681225]
[1768078304661,0.02193971,90572.0,90560.0,0.04681225]
[1768078305530,0.02193971,90572.0,90561.0,0.01104228]
[1768078306043,0.02193971,90572.0,90560.0,0.05785465]
[1768078309100,0.02193971,90572.0,90561.0,0.01104228]
[1768078310263,0.02193971,90572.0,90560.0,0.04681225]
[1768078310452,0.02193971,90572.0,90561.0,0.01104228]
[1768078310746,0.02193971,90572.0,90560.0,0.04681225]
[1768078310982,0.02193971,90572.0,90561.0,0.01104228]
[1768078311210,0.02193971,90572.0,90560.0,0.05785465]
[1768078320643,0.02193971,90572.0,90560.0,0.04676734]
[1768078320852,0.02193971,90572.0,90560.0,0.05780974]
[1768078321845,0.03298064,90572.0,90560.0,0.04676734]
[1768078322285,0.02193971,90572.0,90560.0,0.05780974]
[1768078327843,0.02199412,90572.0,90560.0,0.05780974]
[1768078330136,0.03303505,90572.0,90560.0,0.04676734]
[1768078330339,0.02199412,90572.0,90560.0,0.05780974]
[1768078330486,0.02199412,90572.0,90560.0,0.04676734]
[1768078330671,0.02199412,90572.0,90560.0,0.05780974]
[1768078331375,0.02199412,90572.0,90560.0,0.04676734]
[1768078331894,0.06778633,90572.0,90560.0,0.0110424]
[1768078332062,0.04579221,90571.0,90560.0,0.0110424]
[1768078332263,0.04579221,90571.0,90559.0,0.01104252]
[1768078332502,0.04579221,90571.0,90560.0,0.0110424]
[1768078334069,0.04579221,90571.0,90559.0,0.01104252]
[1768078334286,0.04579221,90571.0,90560.0,0.0110424]
[1768078334472,0.04579221,90571.0,90559.0,0.01104252]
[1768078334707,0.04579221,90571.0,90560.0,0.0110424]
[1768078336358,0.04579221,90571.0,90560.0,0.01099749]
[1768078336642,0.04579221,90571.0,90561.0,0.01104228]
[1768078337226,0.02199412,90572.0,90561.0,0.01104228]
[1768078338158,0.02199412,90572.0,90560.0,0.01099749]
[1768078338388,0.02199412,90572.0,90559.0,0.05694619]
[1768078338584,0.02199412,90572.0,90560.0,0.0110424]
[1768078338901,0.02199412,90572.0,90559.0,0.05694619]
[1768078339137,0.02199412,90572.0,90560.0,0.0110424]
[1768078340464,0.02199412,90572.0,90559.0,0.05694619]
[1768078340851,0.02199412,90572.0,90560.0,0.0110424]
[1768078341051,0.02199412,90572.0,90561.0,0.01104228]
[1768078342660,0.02199412,90572.0,90559.0,0.05694619]
[1768078342797,0.02199412,90572.0,90560.0,0.0110424]
[1768078343210,0.02199412,90572.0,90561.0,0.01104228]
[1768078343409,0.02199412,90572.0,90560.0,0.0110424]
[1768078343610,0.04579221,90571.0,90561.0,0.01104228]
[1768078344292,0.04579221,90571.0,90560.0,0.0110424]
[1768078344497,0.04579221,90571.0,90561.0,0.01104228]
[1768078346550,0.04579221,90571.0,90560.0,0.0110424]
[1768078347653,0.04579221,90571.0,90561.0,0.01104228]
[1768078347965,0.04579221,90571.0,90560.0,0.0110424]
[1768078348846,0.02199412,90572.0,90560.0,0.0110424]
[1768078349049,0.02199412,90572.0,90561.0,0.01104228]
[1768078350527,0.02199412,90572.0,90560.0,0.0110424]
[1768078351054,0.02199412,90572.0,90561.0,0.01104228]
[1768078355435,0.04869465,90571.0,90561.0,0.01104228]
[1768078355835,0.04869465,90571.0,90560.0,0.01099749]
[1768078356116,0.04869465,90571.0,90561.0,0.01104228]
[1768078360580,0.02199412,90572.0,90561.0,0.01104228]
[1768078364438,0.02199412,90572.0,90561.0,0.01099737]
[1768078365523,0.02199412,90572.0,90562.0,0.01104215]
[1768078366788,0.02199412,90572.0,90563.0,0.01104203]
[1768078367185,0.02199412,90572.0,90562.0,0.01104215]
[1768078367611,0.02199412,90572.0,90559.0,0.01104252]
[1768078367784,0.02199412,90572.0,90560.0,0.0110424]
[1768078367986,0.02199412,90572.0,90561.0,0.01104228]
[1768078368564,0.02199412,90572.0,90560.0,0.0110424]
[1768078368698,0.02199412,90572.0,90561.0,0.01104228]
[1768078370290,0.02199412,90572.0,90560.0,0.0110424]
[1768078370695,0.02199412,90572.0,90561.0,0.01104228]
[1768078371490,0.02199412,90572.0,90560.0,0.0110424]
[1768078371753,0.02199412,90572.0,90561.0,0.01104228]
[1768078372439,0.02199412,90572.0,90562.0,0.01104215]
[1768078372637,0.02199412,90572.0,90561.0,0.01104228]
[1768078374789,0.02199412,90572.0,90560.0,0.0110424]
[1768078375000,0.02199412,90572.0,90561.0,0.01104228]
[1768078375399,0.02199412,90572.0,90560.0,0.0110424]
[1768078375615,0.02199412,90572.0,90561.0,0.01104228]
[1768078375815,0.02199412,90572.0,90562.0,0.01104215]
[1768078377070,0.02199412,90572.0,90560.0,0.0110424]
[1768078377283,0.02199412,90572.0,90561.0,0.01104228]
[1768078377492,0.02199412,90572.0,90562.0,0.01104215]
[1768078377700,0.02199412,90572.0,90561.0,0.01104228]
[1768078377936,0.02199412,90572.0,90560.0,0.0110424]
[1768078378585,0.02199412,90572.0,90561.0,0.01104228]
[1768078379354,0.02199412,90572.0,90561.0,0.01099737]
[1768078380199,0.02199412,90572.0,90560.0,0.0110424]
[1768078380365,0.02199412,90572.0,90561.0,0.01104228]
[1768078380577,0.02199412,90572.0,90560.0,0.0110424]
[1768078380780,0.02199412,90572.0,90561.0,0.01104228]
[1768078380990,0.02199412,90572.0,90562.0,0.01104215]
[1768078381391,0.02199412,90572.0,90561.0,0.01104228]
[1768078381954,0.02199412,90572.0,90560.0,0.0110424]
[1768078382155,0.02199412,90572.0,90561.0,0.01104228]
[1768078382998,0.05973498,90577.0,90561.0,0.01104228]
[1768078382999,0.01103935,90585.0,90569.0,0.06102116]
[1768078383239,0.02212,90588.0,90573.0,0.046316]
[1768078383459,0.02212,90588.0,90574.0,0.05716836]
[1768078383460,0.01119482,90584.0,90574.0,0.05716836]
[1768078384413,0.01119482,90584.0,90575.0,0.01104057]
[1768078384634,0.01119482,90584.0,90576.0,0.01104045]
[1768078384865,0.01119482,90584.0,90575.0,0.01104057]
[1768078385055,0.01119482,90584.0,90576.0,0.01104045]
[1768078386106,0.01119482,90584.0,90577.0,0.01104033]
[1768078386322,0.0001523,90584.0,90577.0,0.01104033]
[1768078387033,0.0001523,90584.0,90577.0,0.01088421]
[1768078387457,0.0001523,90584.0,90577.0,0.01104033]
[1768078388544,0.0001523,90584.0,90576.0,0.01104045]
[1768078388758,0.0001523,90584.0,90577.0,0.01104033]
[1768078388974,0.0001523,90584.0,90576.0,0.01104045]
[1768078391247,0.0001523,90584.0,90575.0,0.01104057]
[1768078391676,0.0001523,90584.0,90576.0,0.01104045]
[1768078392495,0.0001523,90584.0,90575.0,0.01104057]
[1768078392695,0.0001523,90584.0,90576.0,0.01104045]
[1768078393081,0.0001523,90584.0,90575.0,0.01104057]
[1768078394135,0.04738507,90584.0,90574.0,0.01104069]
[1768078394561,0.04738507,90584.0,90575.0,0.01104057]
[1768078394772,0.04738507,90584.0,90575.0,0.01099565]
[1768078396538,0.04738507,90584.0,90573.0,0.01104081]
[1768078397363,0.04738507,90584.0,90572.0,0.06624561]
[1768078397568,0.04738507,90584.0,90572.0,0.01104093]
[1768078397771,0.04738507,90584.0,90571.0,0.01104106]
[1768078398113,0.05842454,90584.0,90570.0,0.01104118]
[1768078398321,0.05827249,90582.0,90569.0,0.0110413]
[1768078398529,0.04723277,90582.0,90570.0,0.01104118]
[1768078398946,0.01103984,90581.0,90567.0,0.04612767]
[1768078399152,0.01103996,90580.0,90567.0,0.04612767]
[1768078399573,0.01103996,90580.0,90567.0,0.05716921]
[1768078399775,0.01103984,90581.0,90567.0,0.05716921]
[1768078399982,0.01103996,90580.0,90567.0,0.04612767]
[1768078400193,0.01104033,90577.0,90567.0,0.04612767]
[1768078400397,0.01104045,90576.0,90567.0,0.04612767]
[1768078400602,0.01104033,90577.0,90567.0,0.04612767]
[1768078401005,0.01104045,90576.0,90567.0,0.04612767]
[1768078401214,0.01104069,90574.0,90567.0,0.04612767]
[1768078401422,0.06624276,90576.0,90567.0,0.04612767]
[1768078401423,0.01104057,90575.0,90567.0,0.04612767]
[1768078402204,0.01104081,90573.0,90567.0,0.04612767]
[1768078402406,0.01104069,90574.0,90567.0,0.04612767]
[1768078402995,0.01104057,90575.0,90567.0,0.04612767]
[1768078403215,0.01104045,90576.0,90567.0,0.04612767]
[1768078403577,0.01104057,90575.0,90567.0,0.0460826]
[1768078403779,0.01104033,90577.0,90567.0,0.0460826]
[1768078405480,0.0110402,90578.0,90567.0,0.0460826]
[1768078409986,0.01104008,90579.0,90567.0,0.0460826]
[1768078410189,0.0110402,90578.0,90567.0,0.0460826]
[1768078410858,0.01104008,90579.0,90567.0,0.0460826]
[1768078411703,0.01104008,90579.0,90563.0,0.04417419]
[1768078411927,0.01104033,90577.0,90563.0,0.03313216]
[1768078412114,0.06624215,90577.0,90563.0,0.07925983]
[1768078412352,0.01104045,90576.0,90563.0,0.09030186]
[1768078412545,0.01104057,90575.0,90563.0,0.07925983]
[1768078412950,0.06624329,90576.0,90563.0,0.07925983]
[1768078413191,0.01104057,90575.0,90563.0,0.07925983]
[1768078413584,0.01104045,90576.0,90563.0,0.04612767]
[1768078413721,0.01104069,90574.0,90563.0,0.04612767]
[1768078413927,0.01104057,90575.0,90564.0,0.01104057]
[1768078415732,0.01104045,90576.0,90564.0,0.01104057]
[1768078416895,0.01104045,90576.0,90564.0,0.05716688]
[1768078417322,0.01104057,90575.0,90564.0,0.05716688]
[1768078417518,0.01104081,90573.0,90564.0,0.05716688]
[1768078417722,0.01104093,90572.0,90564.0,0.05716688]
[1768078417893,0.01104093,90572.0,90564.0,0.01104057]
[1768078418103,0.01104057,90575.0,90564.0,0.01104057]
[1768078419982,0.01104057,90575.0,90562.0,0.01104215]
[1768078420115,0.01104057,90575.0,90562.0,0.01109656]
[1768078420323,0.01104045,90576.0,90562.0,0.04422872]
[1768078420683,0.01104045,90576.0,90563.0,0.01104203]
[1768078420829,0.01104033,90577.0,90564.0,0.01104191]
[1768078421227,0.01104033,90577.0,90563.0,0.01104203]
[1768078423401,0.01104033,90577.0,90564.0,0.01104191]
[1768078423610,0.01104033,90577.0,90563.0,0.01104203]
[1768078424241,0.01104033,90577.0,90564.0,0.01104191]
[1768078424469,0.01104033,90577.0,90563.0,0.01104203]
[1768078425008,0.01104057,90575.0,90562.0,0.03318657]
[1768078425220,0.01104045,90576.0,90562.0,0.04422872]
[1768078426037,0.01104033,90577.0,90562.0,0.04422872]
[1768078426449,0.01104045,90576.0,90563.0,0.01104203]
[1768078427430,0.06624225,90577.0,90562.0,0.09035503]
[1768078427651,0.01104045,90576.0,90562.0,0.09035503]
[1768078429418,0.01104057,90575.0,90562.0,0.07931288]
[1768078429619,0.01104045,90576.0,90563.0,0.01104203]
[1768078430398,0.05973436,90577.0,90564.0,0.01104191]
[1768078430799,0.05973436,90577.0,90563.0,0.01099698]
[1768078432818,0.05973436,90577.0,90564.0,0.01104191]
[1768078433846,0.04869403,90577.0,90565.0,0.01104179]
[1768078434046,0.04869403,90577.0,90565.0,0.01098524]
[1768078434260,0.04869403,90577.0,90565.0,0.01104179]
[1768078435310,0.04869403,90577.0,90566.0,0.01104167]
[1768078435716,0.04869403,90577.0,90567.0,0.01104154]
[1768078438157,0.04869403,90577.0,90566.0,0.01104167]
[1768078438367,0.04869403,90577.0,90567.0,0.01104154]
[1768078440808,0.04869403,90577.0,90564.0,0.01104191]
[1768078441031,0.04869403,90577.0,90566.0,0.01104167]
[1768078441465,0.04869403,90577.0,90565.0,0.01104179]
[1768078441671,0.04869403,90577.0,90563.0,0.01104179]
[1768078441878,0.04869403,90577.0,90566.0,0.01104167]
[1768078442503,0.04869403,90577.0,90567.0,0.01104154]
[1768078442708,0.04869403,90577.0,90566.0,0.01104167]
[1768078442880,0.04869403,90577.0,90564.0,0.01104191]
[1768078443226,0.05973436,90577.0,90564.0,0.01104191]
[1768078443479,0.04869403,90577.0,90564.0,0.01104191]
[1768078443692,0.01104045,90576.0,90563.0,0.02208382]
[1768078444062,0.05973436,90577.0,90563.0,0.02208382]
[1768078444564,0.01104045,90576.0,90563.0,0.02208382]
[1768078444966,0.01104045,90576.0,90563.0,0.01104179]
[1768078445170,0.05973436,90577.0,90563.0,0.02208382]
[1768078446434,0.05973436,90577.0,90564.0,0.01104191]
[1768078446632,0.04869403,90577.0,90565.0,0.01104179]
[1768078447921,0.04869403,90577.0,90566.0,0.01104167]
[1768078448175,0.04869403,90577.0,90565.0,0.01104179]
[1768078448557,0.04869403,90577.0,90564.0,0.01104191]
[1768078448879,0.04869403,90577.0,90565.0,0.01104179]
[1768078448997,0.05973436,90577.0,90564.0,0.01104191]
[1768078449204,0.04869403,90577.0,90565.0,0.01104179]
[1768078450283,0.04869403,90577.0,90566.0,0.01104167]
[1768078450479,0.04869403,90577.0,90565.0,0.01104179]
[1768078450642,0.04869403,90577.0,90566.0,0.01104167]
[1768078452910,0.04869403,90577.0,90564.0,0.01104191]
[1768078453126,0.04869403,90577.0,90565.0,0.01104179]
[1768078453509,0.04869403,90577.0,90564.0,0.01104191]
[1768078453729,0.04869403,90577.0,90565.0,0.01104179]
[1768078455691,0.05973436,90577.0,90564.0,0.01104191]
[1768078455875,0.04869403,90577.0,90564.0,0.01104191]
[1768078456671,0.04869403,90577.0,90565.0,0.01104179]
[1768078456851,0.05973436,90577.0,90564.0,0.01104191]
[1768078457051,0.04869403,90577.0,90564.0,0.01104191]
[1768078457258,0.04869403,90577.0,90565.0,0.01104179]
[1768078457970,0.04869403,90577.0,90564.0,0.01104191]
[1768078458196,0.04869403,90577.0,90565.0,0.01104179]
[1768078458336,0.05973436,90577.0,90564.0,0.01104191]
[1768078458678,0.05973436,90577.0,90563.0,0.01104179]
[1768078458877,0.01104045,90576.0,90563.0,0.02208382]
[1768078459117,0.01104057,90575.0,90563.0,0.01104179]
[1768078460042,0.01104045,90576.0,90563.0,0.01104179]
[1768078461592,0.01104045,90576.0,90563.0,0.02208382]
[1768078461937,0.05973436,90577.0,90563.0,0.02208382]
[1768078462134,0.05973436,90577.0,90564.0,0.01104191]
[1768078462355,0.05973436,90577.0,90563.0,0.02208382]
[1768078463912,0.04869403,90577.0,90564.0,0.01104191]
[1768078464988,0.04869403,90577.0,90565.0,0.01104179]
[1768078465233,0.04869403,90577.0,90566.0,0.01104167]
[1768078465389,0.04869403,90577.0,90565.0,0.01104179]
[1768078467760,0.04869403,90577.0,90566.0,0.01104167]
[1768078467954,0.04869403,90577.0,90565.0,0.01104179]
[1768078468164,0.04869403,90577.0,90564.0,0.01104191]
[1768078468363,0.04869403,90577.0,90565.0,0.01104179]
[1768078468988,0.05973436,90577.0,90564.0,0.01104191]
[1768078469189,0.05973436,90577.0,90563.0,0.02208382]
[1768078469731,0.05973436,90577.0,90564.0,0.01104191]
[1768078470097,0.05973436,90577.0,90563.0,0.02208382]
[1768078470721,0.05973436,90577.0,90564.0,0.01104191]
[1768078470949,0.05973436,90577.0,90563.0,0.01104179]
[1768078471166,0.01104057,90575.0,90563.0,0.01104179]
[1768078471344,0.01104045,90576.0,90563.0,0.02208382]
[1768078471542,0.05973436,90577.0,90563.0,0.02208382]
[1768078471843,0.04869403,90577.0,90564.0,0.01104191]
[1768078472229,0.01104045,90576.0,90563.0,0.01104179]
[1768078472458,0.01104045,90576.0,90563.0,0.02208382]
[1768078472639,0.05973436,90577.0,90563.0,0.01104179]
[1768078472806,0.05973436,90577.0,90564.0,0.01104191]
[1768078473006,0.05973436,90577.0,90563.0,0.01104179]
[1768078473223,0.05973436,90577.0,90564.0,0.01104191]
[1768078473930,0.05973436,90577.0,90563.0,0.01104179]
[1768078474155,0.01104045,90576.0,90563.0,0.02208382]
[1768078474381,0.05973436,90577.0,90563.0,0.02208382]
[1768078475400,0.01104045,90576.0,90563.0,0.02208382]
[1768078475606,0.05973436,90577.0,90563.0,0.02208382]
[1768078475832,0.01104045,90576.0,90563.0,0.02208382]
[1768078477228,0.05973436,90577.0,90563.0,0.02208382]
[1768078477835,0.05973436,90577.0,90564.0,0.01104191]
[1768078478036,0.01104045,90576.0,90563.0,0.02208382]
[1768078478197,0.05973436,90577.0,90563.0,0.02208382]
[1768078480683,0.01104045,90576.0,90563.0,0.02208382]
[1768078481084,0.05973436,90577.0,90563.0,0.02208382]
[1768078483378,0.01104057,90575.0,90563.0,0.01104179]
[1768078484207,0.01104045,90576.0,90563.0,0.02208382]
[1768078484436,0.05973436,90577.0,90563.0,0.02208382]
[1768078485688,0.05973436,90577.0,90564.0,0.01104191]
[1768078486070,0.05973436,90577.0,90563.0,0.02208382]
[1768078486266,0.05973436,90577.0,90564.0,0.01104191]
[1768078486657,0.05973436,90577.0,90563.0,0.02208382]
[1768078487171,0.01104045,90576.0,90563.0,0.01104179]
[1768078487737,0.01104045,90576.0,90563.0,0.02208382]
[1768078488039,0.05973436,90577.0,90563.0,0.02208382]
[1768078488784,0.04869403,90577.0,90563.0,0.02208382]
[1768078488984,0.04869403,90577.0,90563.0,0.01104179]
[1768078489523,0.01104045,90576.0,90563.0,0.02208382]
[1768078490115,0.05973436,90577.0,90563.0,0.02208382]
[1768078490314,0.05973436,90577.0,90564.0,0.01104191]
[1768078490517,0.05973436,90577.0,90563.0,0.01104179]
[1768078490518,0.01104045,90576.0,90563.0,0.01104179]
[1768078490741,0.01104045,90576.0,90563.0,0.02208382]
[1768078492130,0.01104057,90575.0,90563.0,0.01104179]
[1768078492470,0.05973436,90577.0,90563.0,0.02208382]
[1768078492893,0.05973436,90577.0,90564.0,0.01104191]
[1768078493393,0.01104057,90575.0,90563.0,0.01104179]
[1768078496455,0.05973436,90577.0,90563.0,0.01104179]
[1768078496682,0.01104045,90576.0,90563.0,0.01104179]
[1768078497419,0.01104057,90575.0,90563.0,0.01104179]
[1768078497807,0.01104045,90576.0,90563.0,0.02208382]
[1768078498368,0.01104045,90576.0,90563.0,0.01104179]
[1768078498707,0.01104057,90575.0,90563.0,0.01104179]
[1768078499027,0.01104045,90576.0,90563.0,0.02208382]
[1768078499250,0.01104057,90575.0,90563.0,0.01104179]
[1768078499626,0.01104045,90576.0,90563.0,0.01104179]
[1768078499809,0.01104045,90576.0,90563.0,0.02208382]
[1768078500273,0.05973436,90577.0,90563.0,0.02208382]
[1768078500506,0.01104045,90576.0,90563.0,0.01104179]
[1768078501541,0.05973436,90577.0,90563.0,0.02208382]
[1768078501947,0.06624271,90576.0,90563.0,0.01104179]
[1768078502256,0.01104057,90575.0,90563.0,0.01104179]
[1768078502458,0.01104069,90574.0,90563.0,0.01104179]
[1768078502665,0.01104045,90576.0,90563.0,0.02208382]
[1768078503056,0.01104057,90575.0,90563.0,0.01104179]
[1768078503455,0.01104045,90576.0,90563.0,0.01104179]
[1768078503998,0.01104093,90572.0,90563.0,0.01104179]
[1768078504200,0.01104142,90568.0,90563.0,0.01104179]
[1768078504634,0.01104154,90567.0,90563.0,0.01104179]
[1768078505035,0.01104191,90564.0,90561.0,0.02212]
[1768078505197,0.04834974,90562.0,90561.0,0.02212]
[1768078505399,0.05521384,90557.0,90556.0,0.03313384]
[1768078505600,0.05521384,90557.0,90555.0,0.0002]
[1768078505601,0.00943992,90558.0,90555.0,0.0002]
[1768078506146,0.05521387,90557.0,90555.0,0.0002]
[1768078506349,0.05521387,90557.0,90553.0,0.02212]
[1768078506350,0.01104289,90556.0,90553.0,0.01237252]
[1768078506875,0.01104276,90557.0,90553.0,0.01237252]
[1768078507075,0.00623436,90558.0,90553.0,0.01237252]
[1768078511106,0.00623436,90558.0,90553.0,0.01221639]
[1768078512727,0.0110424,90560.0,90553.0,0.01221639]
[1768078512941,0.01104252,90559.0,90553.0,0.01221639]
[1768078513746,0.01104264,90558.0,90553.0,0.01221639]
[1768078514386,0.0110424,90560.0,90553.0,0.01221639]
[1768078514750,0.01104252,90559.0,90553.0,0.01221639]
[1768078516001,0.0110424,90560.0,90553.0,0.01221639]
[1768078517163,0.01104252,90559.0,90553.0,0.01221639]
[1768078518665,0.0110424,90560.0,90553.0,0.01221639]
[1768078518906,0.01104252,90559.0,90553.0,0.01221639]
[1768078519327,0.0110424,90560.0,90553.0,0.01221639]
[1768078520458,0.0110424,90560.0,90553.0,0.01206032]
[1768078521137,0.01104252,90559.0,90553.0,0.01206032]
[1768078521348,0.01104264,90558.0,90553.0,0.01206032]
[1768078521561,0.01104252,90559.0,90553.0,0.01206032]
[1768078522987,0.01104264,90558.0,90553.0,0.01206032]
[1768078524052,0.01104252,90559.0,90553.0,0.01206032]
[1768078524333,0.01104215,90562.0,90553.0,0.01206032]
[1768078526790,0.01104215,90562.0,90553.0,0.01190421]
[1768078527245,0.01104203,90563.0,90553.0,0.01190421]
[1768078527443,0.01111594,90563.0,90553.0,0.01190421]
[1768078529919,0.01104228,90561.0,90553.0,0.01190421]
[1768078530106,0.01111594,90563.0,90553.0,0.01190421]
[1768078530312,0.01104228,90561.0,90553.0,0.01190421]
[1768078530544,0.01104215,90562.0,90553.0,0.01190421]
[1768078531173,0.01104228,90561.0,90553.0,0.01190421]
[1768078533124,0.01104215,90562.0,90553.0,0.01190421]
[1768078533755,0.01104228,90561.0,90553.0,0.01190421]
[1768078534361,0.01104228,90561.0,90553.0,0.01174813]
[1768078536637,0.01104215,90562.0,90553.0,0.01174813]
[1768078536843,0.01104228,90561.0,90553.0,0.01174813]
[1768078537515,0.06632631,90563.0,90553.0,0.01174813]
[1768078537516,0.01111594,90563.0,90553.0,0.01174813]
[1768078537712,0.01102582,90563.0,90553.0,0.01174813]
[1768078537950,0.01104228,90561.0,90553.0,0.01174813]
[1768078539586,0.01104215,90562.0,90553.0,0.01174813]
[1768078541623,0.01104228,90561.0,90553.0,0.01174813]
[1768078544336,0.01095215,90561.0,90553.0,0.01174813]
[1768078546352,0.01095215,90561.0,90553.0,0.01170321]
[1768078548450,0.01095215,90561.0,90553.0,0.01154713]
[1768078549545,0.05999866,90562.0,90553.0,0.01154713]
[1768078549731,0.05999866,90562.0,90553.0,0.01139107]
[1768078550253,0.0489565,90562.0,90553.0,0.01139107]
[1768078550454,0.01111594,90563.0,90553.0,0.01139107]
[1768078551177,0.01102581,90563.0,90553.0,0.01139107]
[1768078551807,0.06008854,90564.0,90553.0,0.01139107]
[1768078554421,0.01104203,90563.0,90553.0,0.01139107]
[1768078556959,0.06008854,90564.0,90553.0,0.01139107]
[1768078557384,0.04904663,90564.0,90553.0,0.01139107]
[1768078558175,0.04904663,90564.0,90553.0,0.01134615]
[1768078558372,0.06008854,90564.0,90553.0,0.01134615]
[1768078558681,0.01104203,90563.0,90553.0,0.01134615]
[1768078559981,0.01104215,90562.0,90553.0,0.01134615]
[1768078560171,0.01104203,90563.0,90553.0,0.01134615]
[1768078561551,0.0599984,90564.0,90553.0,0.01134615]
[1768078564219,0.01104203,90563.0,90553.0,0.01134615]
[1768078566126,0.0599984,90564.0,90553.0,0.01134615]
[1768078568472,0.01104203,90563.0,90553.0,0.01119265]
[1768078568678,0.10828476,90564.0,90553.0,0.01119265]
[1768078568885,0.01104203,90563.0,90553.0,0.01119265]
[1768078569679,0.01104203,90563.0,90552.0,0.0001523]
[1768078571514,0.01095189,90563.0,90552.0,0.0001523]
[1768078572081,0.01095189,90563.0,90552.0,0.00022621]
[1768078575456,0.01095189,90563.0,90552.0,0.00018129]
[1768078578302,0.01104215,90562.0,90552.0,0.00018129]
[1768078578504,0.01095201,90562.0,90552.0,0.00018129]
[1768078578881,0.01104228,90561.0,90552.0,0.00018129]
[1768078579045,0.0110424,90560.0,90552.0,0.00018129]
[1768078580656,0.01095214,90561.0,90552.0,0.00018129]
[1768078581067,0.06616407,90561.0,90552.0,0.00018129]
[1768078581282,0.01104252,90559.0,90552.0,0.00018129]
[1768078581961,0.0110424,90560.0,90552.0,0.00018129]
[1768078582387,0.01095214,90561.0,90552.0,0.00018129]
[1768078582666,0.0110424,90560.0,90552.0,0.00018129]
[1768078583304,0.01095214,90561.0,90552.0,0.00018129]
[1768078585153,0.010862,90561.0,90552.0,0.00018129]
[1768078585576,0.0110424,90560.0,90552.0,0.00018129]
[1768078586089,0.010862,90561.0,90552.0,0.00018129]
[1768078587907,0.01095201,90562.0,90552.0,0.00018129]
[1768078589319,0.01104228,90561.0,90552.0,0.00018129]
[1768078589524,0.0110424,90560.0,90552.0,0.00018129]
[1768078589697,0.01104228,90561.0,90552.0,0.00018129]
[1768078590099,0.01095201,90562.0,90552.0,0.00018129]
[1768078591290,0.01095189,90563.0,90552.0,0.00018129]
[1768078593453,0.01104203,90563.0,90552.0,0.00018129]
[1768078593653,0.01104215,90562.0,90552.0,0.00018129]
[1768078594857,0.01104203,90563.0,90552.0,0.00018129]
[1768078595045,0.05789815,90562.0,90552.0,0.00018129]
[1768078596155,0.046856,90562.0,90552.0,0.00018129]
[1768078596812,0.05789815,90562.0,90552.0,0.00018129]
[1768078597224,0.046856,90562.0,90552.0,0.00018129]
[1768078600490,0.01104191,90564.0,90552.0,0.00018129]
[1768078601010,0.01104203,90563.0,90552.0,0.00018129]
[1768078601771,0.01104215,90562.0,90552.0,0.00018129]
[1768078602191,0.01104203,90563.0,90552.0,0.00018129]
[1768078602725,0.01104191,90564.0,90552.0,0.00018129]
[1768078604211,0.01104203,90563.0,90552.0,0.00018129]
[1768078604640,0.01104191,90564.0,90552.0,0.00018129]
[1768078605198,0.01104203,90563.0,90552.0,0.00013636]
[1768078606165,0.01104215,90562.0,90552.0,0.00013636]
[1768078606355,0.01104203,90563.0,90552.0,0.00013636]
[1768078611893,0.01104228,90561.0,90552.0,0.00013636]
[1768078612113,0.01104215,90562.0,90552.0,0.00013636]
[1768078613162,0.01104228,90561.0,90552.0,0.00013636]
[1768078613530,0.01104215,90562.0,90552.0,0.00013636]
[1768078614162,0.01104203,90563.0,90552.0,0.00013636]
[1768078615997,0.01104215,90562.0,90552.0,0.00013636]
[1768078616555,0.01104203,90563.0,90552.0,0.00013636]
[1768078618013,0.01104215,90562.0,90552.0,0.00013636]
[1768078618627,0.01104203,90563.0,90552.0,0.00013636]
[1768078620282,0.04417711,90564.0,90552.0,0.00013636]
[1768078620446,0.01104203,90563.0,90552.0,0.00013636]
[1768078620870,0.01104228,90561.0,90552.0,0.00013636]
[1768078621047,0.05521115,90562.0,90552.0,0.00013636]
[1768078621246,0.0110424,90560.0,90552.0,0.00013636]
[1768078621474,0.01104228,90561.0,90552.0,0.00013636]
[1768078621678,0.01104215,90562.0,90552.0,0.00013636]
[1768078623319,0.01104228,90561.0,90552.0,0.00013636]
[1768078624611,0.01104215,90562.0,90552.0,0.00013636]
[1768078625908,0.04417711,90564.0,90552.0,0.00013636]
[1768078626107,0.01104203,90563.0,90552.0,0.00013636]
[1768078627359,0.04417711,90564.0,90552.0,0.00013636]
[1768078628238,0.01104203,90563.0,90552.0,0.00013636]
[1768078629322,0.01104215,90562.0,90552.0,0.00013636]
[1768078629539,0.01104228,90561.0,90552.0,0.00013636]
[1768078629988,0.01104215,90562.0,90552.0,0.00013636]
[1768078630160,0.01104228,90561.0,90552.0,0.00013636]
[1768078631000,0.01104215,90562.0,90552.0,0.00013636]
[1768078631230,0.01104228,90561.0,90552.0,0.00013636]
[1768078631383,0.01104215,90562.0,90552.0,0.00013636]
[1768078632332,0.0110424,90560.0,90552.0,0.00013636]
[1768078632556,0.01104228,90561.0,90552.0,0.00013636]
[1768078635129,0.01104215,90562.0,90552.0,0.00013636]
[1768078635379,0.01104228,90561.0,90552.0,0.00013636]
[1768078636287,0.01104203,90563.0,90552.0,0.00013636]
[1768078637753,0.01104215,90562.0,90552.0,0.00013636]
[1768078638280,0.01104203,90563.0,90552.0,0.00013636]
[1768078639683,0.04417711,90564.0,90552.0,0.00013636]
[1768078639920,0.01104203,90563.0,90552.0,0.00013636]
[1768078643905,0.01104215,90562.0,90552.0,0.00013636]